[Event "*** Titled Tuesday Blitz"]
[Site "Chess.com"]
[Date "2020.04.14"]
[Round "3"]
[White "joppie2"]
[Black "krzyzan94"]
[Result "0-1"]
[WhiteElo "2927"]
[BlackElo "2693"]
[TimeControl "180+1"]
[EndTime "10:30:25 PDT"]
[Termination "krzyzan94 won by resignation"]

1. e4 {[%clk 0:03:00.9]} 1... e5 {[%clk 0:02:58]} 2. Nf3 {[%clk 0:03:00.7]} 2...
Nc6 {[%clk 0:02:58.3]} 3. Bc4 {[%clk 0:03:01.3]} 3... Nf6 {[%clk 0:02:57.2]} 4.
O-O {[%clk 0:03:00.3]} 4... Nxe4 {[%clk 0:02:54.5]} 5. Qe2 {[%clk 0:02:59.9]}
5... d5 {[%clk 0:02:52.1]} 6. Bb5 {[%clk 0:02:58.9]} 6... Bd6 {[%clk 0:02:42.4]}
7. c4 {[%clk 0:02:58.9]} 7... Be6 {[%clk 0:02:32.2]} 8. b4 {[%clk 0:02:58.3]}
8... O-O {[%clk 0:02:23.9]} 9. Bxc6 {[%clk 0:02:54.9]} 9... bxc6 {[%clk
0:02:24.8]} 10. c5 {[%clk 0:02:55.3]} 10... Be7 {[%clk 0:02:25.4]} 11. d3 {[%clk
0:02:52.4]} 11... Nf6 {[%clk 0:02:24.2]} 12. Nxe5 {[%clk 0:02:51.2]} 12... Bd7
{[%clk 0:02:17.6]} 13. d4 {[%clk 0:02:45.4]} 13... a5 {[%clk 0:02:15.7]} 14.
bxa5 {[%clk 0:02:44]} 14... Rxa5 {[%clk 0:02:12]} 15. a4 {[%clk 0:02:37.7]}
15... Re8 {[%clk 0:02:11.8]} 16. Bd2 {[%clk 0:02:32.3]} 16... Ra8 {[%clk
0:02:10.4]} 17. Nc3 {[%clk 0:02:28.7]} 17... Bf8 {[%clk 0:01:59.9]} 18. Rfe1
{[%clk 0:02:20.3]} 18... Bc8 {[%clk 0:01:55]} 19. Qf3 {[%clk 0:02:15]} 19... Re6
{[%clk 0:01:48.3]} 20. Bg5 {[%clk 0:02:05.8]} 20... Qe8 {[%clk 0:01:40.4]} 21.
Bxf6 {[%clk 0:01:38.4]} 21... Rxf6 {[%clk 0:01:36.1]} 22. Qg3 {[%clk 0:01:34.5]}
22... Re6 {[%clk 0:01:24.8]} 23. Nd3 {[%clk 0:01:27.8]} 23... Rxe1+ {[%clk
0:00:51.2]} 24. Rxe1 {[%clk 0:01:26.8]} 24... Qd7 {[%clk 0:00:48.1]} 25. h3
{[%clk 0:01:20.2]} 25... g6 {[%clk 0:00:40.2]} 26. Ne5 {[%clk 0:00:56.7]} 26...
Qe6 {[%clk 0:00:40.5]} 27. Nf3 {[%clk 0:00:55.5]} 27... Qd7 {[%clk 0:00:38.9]}
28. Ne5 {[%clk 0:00:45.8]} 28... Qe6 {[%clk 0:00:38.6]} 29. Re3 {[%clk
0:00:46.5]} 29... Bg7 {[%clk 0:00:35]} 30. Nf3 {[%clk 0:00:37.2]} 30... Qd7
{[%clk 0:00:34.7]} 31. Qf4 {[%clk 0:00:34.3]} 31... Ba6 {[%clk 0:00:34.3]} 32.
Ne5 {[%clk 0:00:34.5]} 32... Qe6 {[%clk 0:00:30.9]} 33. Nd3 {[%clk 0:00:34.6]}
33... Qd7 {[%clk 0:00:30.8]} 34. Nb4 {[%clk 0:00:34.7]} 34... Bc4 {[%clk
0:00:31.4]} 35. Nc2 {[%clk 0:00:27.2]} 35... Rb8 {[%clk 0:00:31]} 36. Re1 {[%clk
0:00:21]} 36... h5 {[%clk 0:00:31.1]} 37. Qe3 {[%clk 0:00:20.6]} 37... Bf6
{[%clk 0:00:30.4]} 38. Na3 {[%clk 0:00:18.9]} 38... Ba6 {[%clk 0:00:30]} 39. Qf4
{[%clk 0:00:19.3]} 39... Kg7 {[%clk 0:00:30]} 40. Nc2 {[%clk 0:00:19]} 40... Rb3
{[%clk 0:00:29.2]} 41. Qd2 {[%clk 0:00:17.6]} 41... Qf5 {[%clk 0:00:26.5]} 42.
Ne3 {[%clk 0:00:17.6]} 42... Qd3 {[%clk 0:00:26.7]} 43. Qxd3 {[%clk 0:00:17.1]}
43... Bxd3 {[%clk 0:00:27.6]} 44. Na2 {[%clk 0:00:16.1]} 44... Bxd4 {[%clk
0:00:27.2]} 45. Nc1 {[%clk 0:00:16.8]} 45... Ra3 {[%clk 0:00:26.3]} 46. Rd1
{[%clk 0:00:16.6]} 46... Bxe3 {[%clk 0:00:25.4]} 47. Nxd3 {[%clk 0:00:16.4]}
47... Bd4 {[%clk 0:00:25.6]} 48. Nb4 {[%clk 0:00:16.8]} 48... Bxc5 {[%clk
0:00:25.6]} 49. Nxc6 {[%clk 0:00:17.5]} 49... Rxa4 {[%clk 0:00:22.6]} 50. g3
{[%clk 0:00:16.1]} 50... d4 {[%clk 0:00:21]} 51. Kg2 {[%clk 0:00:16.7]} 51...
Kf6 {[%clk 0:00:20.9]} 52. f4 {[%clk 0:00:16.2]} 52... Ke6 {[%clk 0:00:20.8]}
53. Ne5 {[%clk 0:00:16.1]} 53... Kd5 {[%clk 0:00:19.8]} 54. Nxf7 {[%clk
0:00:16.2]} 54... Ra2+ {[%clk 0:00:19.8]} 55. Kf3 {[%clk 0:00:16]} 55... Ra3+
{[%clk 0:00:20.3]} 56. Kg2 {[%clk 0:00:16.6]} 56... Bb4 {[%clk 0:00:19.7]} 57.
Ne5 {[%clk 0:00:16.6]} 57... c5 {[%clk 0:00:20.1]} 58. Nxg6 {[%clk 0:00:15.4]}
58... c4 {[%clk 0:00:20.6]} 59. f5 {[%clk 0:00:16.3]} 59... c3 {[%clk
0:00:21.1]} 60. Nf4+ {[%clk 0:00:16.2]} 60... Kc4 {[%clk 0:00:20.9]} 61. f6
{[%clk 0:00:09.1]} 61... c2 {[%clk 0:00:20.6]} 62. Rc1 {[%clk 0:00:09.8]} 62...
d3 {[%clk 0:00:21.1]} 63. f7 {[%clk 0:00:10.3]} 63... Kc3 {[%clk 0:00:20.6]} 64.
Nd5+ {[%clk 0:00:10.3]} 64... Kd2 {[%clk 0:00:19.9]} 65. Nxb4 {[%clk 0:00:11.2]}
65... Ra8 {[%clk 0:00:17.7]} 66. Nxd3 {[%clk 0:00:11.4]} 66... Kxd3 {[%clk
0:00:18.5]} 67. g4 {[%clk 0:00:11.1]} 67... hxg4 {[%clk 0:00:16.6]} 68. hxg4
{[%clk 0:00:12]} 68... Rf8 {[%clk 0:00:17.1]} 69. Kg3 {[%clk 0:00:08.6]} 69...
Rxf7 {[%clk 0:00:17.5]} 70. g5 {[%clk 0:00:09.3]} 70... Kd2 {[%clk 0:00:14.9]}
71. Ra1 {[%clk 0:00:07.9]} 71... Ra7 {[%clk 0:00:13.4]} 72. Rf1 {[%clk 0:00:07]}
72... Ra4 {[%clk 0:00:13.1]} 73. Rf2+ {[%clk 0:00:06.3]} 73... Kd3 {[%clk
0:00:12.5]} 74. Rf3+ {[%clk 0:00:06.6]} 74... Ke2 {[%clk 0:00:12.1]} 75. Rf2+
{[%clk 0:00:06.2]} 75... Kd1 {[%clk 0:00:12.1]} 76. Rf1+ {[%clk 0:00:06.7]}
76... Ke2 {[%clk 0:00:12.1]} 77. Rf2+ {[%clk 0:00:07]} 77... Kd3 {[%clk
0:00:12.3]} 78. Rf3+ {[%clk 0:00:07.6]} 78... Kc4 {[%clk 0:00:12.3]} 79. Rf1
{[%clk 0:00:06.3]} 79... Kb3 {[%clk 0:00:11.7]} 80. g6 {[%clk 0:00:05.2]} 80...
Ra6 {[%clk 0:00:11.5]} 81. g7 {[%clk 0:00:04.6]} 81... Rg6+ {[%clk 0:00:11.4]}
82. Kf4 {[%clk 0:00:05.5]} 82... Rxg7 {[%clk 0:00:11.3]} 83. Ke3 {[%clk
0:00:06.4]} 83... Kb2 {[%clk 0:00:11.7]} 84. Rh1 {[%clk 0:00:06.3]} 84... c1=Q+
{[%clk 0:00:11.4]} 0-1

[Event "*** Titled Tuesday Blitz"]
[Site "Chess.com"]
[Date "2020.04.14"]
[Round "3"]
[White "benko_008"]
[Black "vovachesss"]
[Result "1-0"]
[WhiteElo "2422"]
[BlackElo "2596"]
[TimeControl "180+1"]
[EndTime "10:30:25 PDT"]
[Termination "benko_008 won by checkmate"]

1. Nf3 {[%clk 0:03:00.9]} 1... Nc6 {[%clk 0:02:46.3]} 2. d4 {[%clk 0:02:59.6]}
2... d5 {[%clk 0:02:46.3]} 3. c4 {[%clk 0:02:59.3]} 3... e6 {[%clk 0:02:45.6]}
4. Nc3 {[%clk 0:02:58.6]} 4... Nf6 {[%clk 0:02:45.2]} 5. Bg5 {[%clk 0:02:54.3]}
5... Be7 {[%clk 0:02:43.6]} 6. e3 {[%clk 0:02:54.1]} 6... O-O {[%clk 0:02:43]}
7. Rc1 {[%clk 0:02:52.9]} 7... dxc4 {[%clk 0:02:40.3]} 8. Bxc4 {[%clk
0:02:51.8]} 8... a6 {[%clk 0:02:41.2]} 9. O-O {[%clk 0:02:50.2]} 9... b5 {[%clk
0:02:41.1]} 10. Bd3 {[%clk 0:02:48.5]} 10... Bb7 {[%clk 0:02:41.4]} 11. Bb1
{[%clk 0:02:43.7]} 11... h6 {[%clk 0:02:32.2]} 12. Bxf6 {[%clk 0:02:38.2]} 12...
Bxf6 {[%clk 0:02:31.9]} 13. Ne4 {[%clk 0:02:36.4]} 13... Rc8 {[%clk 0:02:26]}
14. Rxc6 {[%clk 0:02:08]} 14... Bxc6 {[%clk 0:02:04.2]} 15. Nxf6+ {[%clk
0:02:07.5]} 15... Qxf6 {[%clk 0:01:59.8]} 16. Qc2 {[%clk 0:02:07.3]} 16... Qf5
{[%clk 0:01:45.6]} 17. Qxc6 {[%clk 0:02:05.8]} 17... Qd5 {[%clk 0:01:46.5]} 18.
Rc1 {[%clk 0:01:56.6]} 18... Rfd8 {[%clk 0:01:39.4]} 19. Ne5 {[%clk 0:01:53.6]}
19... Rd6 {[%clk 0:01:28.6]} 20. Qxd5 {[%clk 0:01:49.9]} 20... Rxd5 {[%clk
0:01:26.7]} 21. Nc6 {[%clk 0:01:47.7]} 21... Kf8 {[%clk 0:01:27.2]} 22. b4
{[%clk 0:01:42.6]} 22... f5 {[%clk 0:01:24]} 23. Kf1 {[%clk 0:01:39.6]} 23...
Ke8 {[%clk 0:01:16.4]} 24. a3 {[%clk 0:01:38.6]} 24... Kd7 {[%clk 0:01:16.5]}
25. Ne5+ {[%clk 0:01:37.6]} 25... Ke7 {[%clk 0:01:14.1]} 26. h4 {[%clk
0:01:33.8]} 26... c6 {[%clk 0:01:05.6]} 27. Ke2 {[%clk 0:01:18.7]} 27... Rd6
{[%clk 0:00:55.6]} 28. Bd3 {[%clk 0:01:09.7]} 28... Rc7 {[%clk 0:00:50.4]} 29.
h5 {[%clk 0:01:09.2]} 29... Kd8 {[%clk 0:00:47]} 30. Kd2 {[%clk 0:01:05.3]}
30... Kc8 {[%clk 0:00:46.9]} 31. Rh1 {[%clk 0:01:02.1]} 31... Kb7 {[%clk
0:00:46.8]} 32. Rh3 {[%clk 0:01:01.8]} 32... Rd8 {[%clk 0:00:46]} 33. Rg3 {[%clk
0:01:01.8]} 33... a5 {[%clk 0:00:45.8]} 34. Rg6 {[%clk 0:00:57.8]} 34... Re7
{[%clk 0:00:40.9]} 35. Be2 {[%clk 0:00:55.8]} 35... axb4 {[%clk 0:00:33.4]} 36.
axb4 {[%clk 0:00:55.3]} 36... Ra8 {[%clk 0:00:34.3]} 37. Bf3 {[%clk 0:00:52.7]}
37... Ra2+ {[%clk 0:00:34.8]} 38. Kc3 {[%clk 0:00:47.4]} 38... Rxf2 {[%clk
0:00:32.9]} 39. Nd3 {[%clk 0:00:38.8]} 39... Ra2 {[%clk 0:00:26.6]} 40. Nc5+
{[%clk 0:00:36.9]} 40... Kb6 {[%clk 0:00:26.2]} 41. Rxe6 {[%clk 0:00:35.5]}
41... Rxe6 {[%clk 0:00:20.4]} 42. Nxe6 {[%clk 0:00:36.4]} 42... Ra3+ {[%clk
0:00:19.9]} 43. Kd2 {[%clk 0:00:35]} 43... Rb3 {[%clk 0:00:20]} 44. Nxg7 {[%clk
0:00:34]} 44... f4 {[%clk 0:00:19.3]} 45. exf4 {[%clk 0:00:32.2]} 45... Rxb4
{[%clk 0:00:20.2]} 46. Kc3 {[%clk 0:00:30.1]} 46... Rc4+ {[%clk 0:00:20]} 47.
Kd3 {[%clk 0:00:30.1]} 47... c5 {[%clk 0:00:17.6]} 48. Ne6 {[%clk 0:00:26.5]}
48... cxd4 {[%clk 0:00:16.9]} 49. Nxd4 {[%clk 0:00:27.4]} 49... Kc5 {[%clk
0:00:17.2]} 50. Ne2 {[%clk 0:00:22.3]} 50... b4 {[%clk 0:00:15.8]} 51. g4 {[%clk
0:00:09.4]} 51... b3 {[%clk 0:00:15.9]} 52. Nc3 {[%clk 0:00:09]} 52... b2 {[%clk
0:00:15.4]} 53. Be4 {[%clk 0:00:08.1]} 53... Rd4+ {[%clk 0:00:10.6]} 54. Ke3
{[%clk 0:00:07.1]} 54... Kc4 {[%clk 0:00:08.1]} 55. Nb1 {[%clk 0:00:06.9]} 55...
Rd1 {[%clk 0:00:05.5]} 56. g5 {[%clk 0:00:06.5]} 56... hxg5 {[%clk 0:00:04.1]}
57. fxg5 {[%clk 0:00:06]} 57... Rg1 {[%clk 0:00:04]} 58. Kf4 {[%clk 0:00:05.1]}
58... Kb3 {[%clk 0:00:03.6]} 59. h6 {[%clk 0:00:03.8]} 59... Ka2 {[%clk
0:00:04.5]} 60. Nc3+ {[%clk 0:00:03.2]} 60... Kb3 {[%clk 0:00:04.3]} 61. Nb1
{[%clk 0:00:03.3]} 61... Ka2 {[%clk 0:00:04.5]} 62. Nd2 {[%clk 0:00:03.2]} 62...
Rd1 {[%clk 0:00:04.2]} 63. Nc4 {[%clk 0:00:02.8]} 63... Rd4 {[%clk 0:00:04.1]}
64. Nxb2 {[%clk 0:00:02.5]} 64... Kxb2 {[%clk 0:00:04.2]} 65. h7 {[%clk
0:00:02.8]} 65... Rd8 {[%clk 0:00:04.1]} 66. g6 {[%clk 0:00:03.2]} 66... Kc3
{[%clk 0:00:04]} 67. Kg5 {[%clk 0:00:03.6]} 67... Kd4 {[%clk 0:00:04.4]} 68. g7
{[%clk 0:00:04]} 68... Kxe4 {[%clk 0:00:04.3]} 69. g8=Q {[%clk 0:00:04.9]} 69...
Rd5+ {[%clk 0:00:04.2]} 70. Kg6 {[%clk 0:00:03.5]} 70... Rd3 {[%clk 0:00:03.3]}
71. Kf7 {[%clk 0:00:03.1]} 71... Rf3+ {[%clk 0:00:04.2]} 72. Ke7 {[%clk
0:00:03]} 72... Re3 {[%clk 0:00:05.1]} 73. Qg4+ {[%clk 0:00:02.5]} 73... Kd5+
{[%clk 0:00:06]} 74. Kf7 {[%clk 0:00:02.8]} 74... Re1 {[%clk 0:00:05.7]} 75. Kg6
{[%clk 0:00:03]} 75... Rf1 {[%clk 0:00:06.6]} 76. Qf5+ {[%clk 0:00:02.7]} 76...
Kd6 {[%clk 0:00:06.5]} 77. Qxf1 {[%clk 0:00:02.1]} 77... Ke7 {[%clk 0:00:06.8]}
78. Qf2 {[%clk 0:00:03]} 78... Ke8 {[%clk 0:00:06.7]} 79. Qg3 {[%clk 0:00:03.9]}
79... Ke7 {[%clk 0:00:07.4]} 80. h8=Q {[%clk 0:00:03.7]} 80... Ke6 {[%clk
0:00:08]} 81. Qge5+ {[%clk 0:00:04]} 81... Kd7 {[%clk 0:00:08.2]} 82. Qhf6
{[%clk 0:00:03.9]} 82... Kc8 {[%clk 0:00:07.3]} 83. Qee7 {[%clk 0:00:04.8]}
83... Kb8 {[%clk 0:00:07.3]} 84. Qff8# {[%clk 0:00:05.7]} 1-0

[Event "*** Titled Tuesday Blitz"]
[Site "Chess.com"]
[Date "2020.04.14"]
[Round "3"]
[White "Budisavljevic"]
[Black "EndgameGrinder"]
[Result "0-1"]
[WhiteElo "2405"]
[BlackElo "2681"]
[TimeControl "180+1"]
[EndTime "10:30:30 PDT"]
[Termination "EndgameGrinder won on time"]

1. d4 {[%clk 0:03:00.9]} 1... d5 {[%clk 0:02:59.8]} 2. Bf4 {[%clk 0:02:59.2]}
2... c5 {[%clk 0:02:57.9]} 3. e3 {[%clk 0:02:58.8]} 3... Nc6 {[%clk 0:02:56.9]}
4. c3 {[%clk 0:02:58.5]} 4... Qb6 {[%clk 0:02:56.3]} 5. Qb3 {[%clk 0:02:56.3]}
5... c4 {[%clk 0:02:56.3]} 6. Qc2 {[%clk 0:02:56.1]} 6... Bf5 {[%clk 0:02:54.7]}
7. Qxf5 {[%clk 0:02:55.3]} 7... Qxb2 {[%clk 0:02:53.8]} 8. Qxd5 {[%clk 0:02:55]}
8... Qxa1 {[%clk 0:02:52.1]} 9. Qb5 {[%clk 0:02:54]} 9... O-O-O {[%clk
0:02:37.9]} 10. Bxc4 {[%clk 0:02:49.5]} 10... e5 {[%clk 0:02:32.2]} 11. Ne2
{[%clk 0:02:43.1]} 11... exf4 {[%clk 0:01:57.6]} 12. O-O {[%clk 0:02:41.9]}
12... a6 {[%clk 0:01:43]} 13. Qb6 {[%clk 0:02:20.5]} 13... Rd6 {[%clk
0:01:33.5]} 14. Nd2 {[%clk 0:01:50.3]} 14... Nxd4 {[%clk 0:01:31.7]} 15. Qc5+
{[%clk 0:01:45.7]} 15... Kb8 {[%clk 0:00:49.8]} 16. Rxa1 {[%clk 0:01:41]} 16...
Nxe2+ {[%clk 0:00:49.9]} 17. Bxe2 {[%clk 0:01:39.4]} 17... Nf6 {[%clk
0:00:49.1]} 18. Qe5 {[%clk 0:01:28.7]} 18... Ka8 {[%clk 0:00:28.1]} 19. Nc4
{[%clk 0:01:19]} 19... Re6 {[%clk 0:00:25.8]} 20. Qxf4 {[%clk 0:01:17.6]} 20...
Bc5 {[%clk 0:00:24.2]} 21. Rd1 {[%clk 0:01:06.5]} 21... Rb8 {[%clk 0:00:22.2]}
22. Bf3 {[%clk 0:01:04.9]} 22... Ka7 {[%clk 0:00:22]} 23. Qg5 {[%clk 0:00:41.1]}
23... Bf8 {[%clk 0:00:20]} 24. Qa5 {[%clk 0:00:36.6]} 24... Rc8 {[%clk 0:00:19]}
25. Qa4 {[%clk 0:00:26.5]} 25... b5 {[%clk 0:00:17.6]} 26. Qa5 {[%clk
0:00:16.3]} 26... Rxc4 {[%clk 0:00:18.1]} 27. Qd8 {[%clk 0:00:14.6]} 27... Be7
{[%clk 0:00:17.1]} 28. Qa8+ {[%clk 0:00:13.2]} 28... Kb6 {[%clk 0:00:17.1]} 29.
Qb7+ {[%clk 0:00:09.9]} 29... Ka5 {[%clk 0:00:17.4]} 30. a4 {[%clk 0:00:06.4]}
30... Rxc3 {[%clk 0:00:05.9]} 31. axb5 {[%clk 0:00:05.6]} 31... axb5 {[%clk
0:00:05.6]} 32. Be2 {[%clk 0:00:05.1]} 32... Rc5 {[%clk 0:00:03.8]} 33. Ra1+
{[%clk 0:00:04.6]} 33... Kb4 {[%clk 0:00:04.4]} 34. Rb1+ {[%clk 0:00:04.4]}
34... Kc3 {[%clk 0:00:04.9]} 35. Rxb5 {[%clk 0:00:03.3]} 35... Rxb5 {[%clk
0:00:05.8]} 36. Qxb5 {[%clk 0:00:04.2]} 36... Ne4 {[%clk 0:00:05.1]} 37. Qc4+
{[%clk 0:00:03.3]} 37... Kb2 {[%clk 0:00:05.8]} 38. Bd3 {[%clk 0:00:02.6]} 38...
Ka3 {[%clk 0:00:06.4]} 39. Qc2 {[%clk 0:00:03.5]} 39... Nd6 {[%clk 0:00:06]} 40.
Qc3+ {[%clk 0:00:02.8]} 40... Ka4 {[%clk 0:00:06.2]} 41. Bc2+ {[%clk 0:00:03.7]}
41... Kb5 {[%clk 0:00:07.1]} 42. Bd3+ {[%clk 0:00:02.3]} 42... Kb6 {[%clk
0:00:07.4]} 43. Qd4+ {[%clk 0:00:02.5]} 43... Kc7 {[%clk 0:00:08.3]} 44. Qxg7
{[%clk 0:00:02.9]} 44... Rg6 {[%clk 0:00:08.2]} 45. Qxh7 {[%clk 0:00:02.8]}
45... Rf6 {[%clk 0:00:08]} 46. g3 {[%clk 0:00:03.7]} 46... Kd7 {[%clk
0:00:08.6]} 47. Qh8 {[%clk 0:00:04.6]} 47... Ne8 {[%clk 0:00:09.3]} 48. Bf1
{[%clk 0:00:04.3]} 48... Rd6 {[%clk 0:00:10.2]} 49. Bh3+ {[%clk 0:00:05.2]}
49... Kc7 {[%clk 0:00:10.3]} 50. Qh4 {[%clk 0:00:05]} 50... Rd1+ {[%clk
0:00:11.2]} 51. Kg2 {[%clk 0:00:04.3]} 51... Bxh4 {[%clk 0:00:11.7]} 52. gxh4
{[%clk 0:00:05.2]} 52... Kd6 {[%clk 0:00:12.2]} 53. Bg4 {[%clk 0:00:06]} 53...
Rd2 {[%clk 0:00:12.6]} 54. Bf3 {[%clk 0:00:05.9]} 54... Nf6 {[%clk 0:00:13.5]}
55. h5 {[%clk 0:00:06.7]} 55... Ke5 {[%clk 0:00:13.5]} 56. h6 {[%clk 0:00:07.6]}
56... Rd8 {[%clk 0:00:13.5]} 57. Kg3 {[%clk 0:00:07.9]} 57... Rh8 {[%clk
0:00:14]} 58. h4 {[%clk 0:00:08.8]} 58... Rxh6 {[%clk 0:00:14.4]} 59. Kh3 {[%clk
0:00:09.7]} 59... Rg6 {[%clk 0:00:14]} 60. h5 {[%clk 0:00:08.1]} 60... Rh6
{[%clk 0:00:14.2]} 61. Kh4 {[%clk 0:00:09]} 61... Nh7 {[%clk 0:00:14.7]} 62. Kg4
{[%clk 0:00:08.4]} 62... Kf6 {[%clk 0:00:15.2]} 63. Be2 {[%clk 0:00:07.7]} 63...
Ng5 {[%clk 0:00:15.2]} 64. f4 {[%clk 0:00:08.6]} 64... Ne4 {[%clk 0:00:13.2]}
65. Bf3 {[%clk 0:00:08.2]} 65... Nd2 {[%clk 0:00:12]} 66. Be2 {[%clk 0:00:06.8]}
66... Rh8 {[%clk 0:00:12.4]} 67. Bd3 {[%clk 0:00:06.1]} 67... Nb3 {[%clk
0:00:11.2]} 68. e4 {[%clk 0:00:05.3]} 68... Nc5 {[%clk 0:00:10.8]} 69. e5+
{[%clk 0:00:05]} 69... Kg7 {[%clk 0:00:10.7]} 70. Bc4 {[%clk 0:00:04.1]} 70...
Ne6 {[%clk 0:00:10.5]} 71. f5 {[%clk 0:00:01.6]} 71... Nc5 {[%clk 0:00:09.3]}
72. Kg5 {[%clk 0:00:01.2]} 72... Rg8 {[%clk 0:00:06.5]} 73. f6+ {[%clk
0:00:02.1]} 73... Kh7+ {[%clk 0:00:06.7]} 74. Kf4 {[%clk 0:00:03]} 74... Rf8
{[%clk 0:00:07]} 75. Bd5 {[%clk 0:00:02.1]} 75... Kh6 {[%clk 0:00:07.3]} 76. Kf5
{[%clk 0:00:02.4]} 76... Kxh5 {[%clk 0:00:07.6]} 77. Bxf7+ {[%clk 0:00:01.5]}
77... Rxf7 {[%clk 0:00:05.2]} 78. e6 {[%clk 0:00:02.4]} 78... Nxe6 {[%clk
0:00:04.9]} 79. Kxe6 {[%clk 0:00:03.3]} 79... Kg6 {[%clk 0:00:05.8]} 0-1

[Event "*** Titled Tuesday Blitz"]
[Site "Chess.com"]
[Date "2020.04.14"]
[Round "3"]
[White "dennisodessa"]
[Black "NewBornNow"]
[Result "0-1"]
[WhiteElo "2327"]
[BlackElo "2658"]
[TimeControl "180+1"]
[EndTime "10:30:51 PDT"]
[Termination "NewBornNow won on time"]

1. d4 {[%clk 0:02:59.9]} 1... Nf6 {[%clk 0:02:58.8]} 2. c4 {[%clk 0:02:59.7]}
2... Nc6 {[%clk 0:02:56.1]} 3. Nc3 {[%clk 0:02:52.1]} 3... e5 {[%clk 0:02:55.4]}
4. d5 {[%clk 0:02:47.3]} 4... Ne7 {[%clk 0:02:55.2]} 5. e4 {[%clk 0:02:47.1]}
5... Ng6 {[%clk 0:02:53.6]} 6. g3 {[%clk 0:02:40.1]} 6... Bb4 {[%clk 0:02:52.1]}
7. Bg2 {[%clk 0:02:30.9]} 7... Bxc3+ {[%clk 0:02:51.5]} 8. bxc3 {[%clk
0:02:31.8]} 8... d6 {[%clk 0:02:51]} 9. h4 {[%clk 0:02:26.8]} 9... h6 {[%clk
0:02:48.9]} 10. Ne2 {[%clk 0:02:03.5]} 10... O-O {[%clk 0:02:48]} 11. f3 {[%clk
0:01:49.4]} 11... Nd7 {[%clk 0:02:38.1]} 12. h5 {[%clk 0:01:46.6]} 12... Ne7
{[%clk 0:02:37.6]} 13. g4 {[%clk 0:01:38.6]} 13... f6 {[%clk 0:02:35.6]} 14. Ng3
{[%clk 0:01:36]} 14... a5 {[%clk 0:02:31.5]} 15. Be3 {[%clk 0:01:32.9]} 15... b6
{[%clk 0:02:31.2]} 16. Bf1 {[%clk 0:01:25.7]} 16... Ba6 {[%clk 0:02:30.1]} 17.
Be2 {[%clk 0:01:22.7]} 17... Rc8 {[%clk 0:02:28.9]} 18. Kf2 {[%clk 0:00:57.8]}
18... c6 {[%clk 0:02:28.5]} 19. Qb3 {[%clk 0:00:30.2]} 19... cxd5 {[%clk
0:02:18]} 20. cxd5 {[%clk 0:00:31.1]} 20... Bxe2 {[%clk 0:02:16.9]} 21. Nxe2
{[%clk 0:00:26.4]} 21... Qc7 {[%clk 0:02:15.6]} 22. Rab1 {[%clk 0:00:23.8]}
22... Rb8 {[%clk 0:02:02.3]} 23. Qb5 {[%clk 0:00:20.1]} 23... Rfc8 {[%clk
0:01:59.6]} 24. Rb2 {[%clk 0:00:19.1]} 24... Nc5 {[%clk 0:01:53.9]} 25. Rhb1
{[%clk 0:00:19.2]} 25... Qd8 {[%clk 0:01:49.6]} 26. Nc1 {[%clk 0:00:09.4]} 26...
Rc7 {[%clk 0:01:39.9]} 27. Nd3 {[%clk 0:00:09.4]} 27... Nd7 {[%clk 0:01:39.1]}
28. c4 {[%clk 0:00:06.9]} 28... Qc8 {[%clk 0:01:38.4]} 29. Rc2 {[%clk
0:00:06.8]} 29... Rbb7 {[%clk 0:01:30.2]} 30. a4 {[%clk 0:00:06.7]} 30... Qb8
{[%clk 0:01:21.3]} 31. Rbc1 {[%clk 0:00:07]} 31... Nc8 {[%clk 0:01:19.8]} 32.
Rb1 {[%clk 0:00:05.7]} 32... Na7 {[%clk 0:01:19.2]} 33. Qb3 {[%clk 0:00:05.1]}
33... Qc8 {[%clk 0:01:17.3]} 34. Ke2 {[%clk 0:00:03.6]} 34... Rb8 {[%clk
0:01:15.5]} 35. Rbc1 {[%clk 0:00:01.7]} 35... Qa6 {[%clk 0:01:15.2]} 36. Rc3
{[%clk 0:00:01.9]} 36... Rbc8 {[%clk 0:01:14.9]} 37. Nb2 {[%clk 0:00:02.4]}
37... Nc5 {[%clk 0:01:13.5]} 38. Bxc5 {[%clk 0:00:02.6]} 38... Rxc5 {[%clk
0:01:12.9]} 39. Nd3 {[%clk 0:00:03.1]} 39... R5c7 {[%clk 0:01:12.4]} 40. Ke3
{[%clk 0:00:03.5]} 40... Rb7 {[%clk 0:01:09.9]} 41. Ke2 {[%clk 0:00:03.5]} 41...
Rbb8 {[%clk 0:01:09.4]} 42. Ke3 {[%clk 0:00:03.8]} 42... Qb7 {[%clk 0:01:07.9]}
43. Nb2 {[%clk 0:00:03.7]} 43... Qf7 {[%clk 0:01:07.2]} 44. Nd3 {[%clk
0:00:03.8]} 44... Rb7 {[%clk 0:00:55.2]} 45. Rh1 {[%clk 0:00:03.9]} 45... Rcb8
{[%clk 0:00:54.6]} 46. Nb2 {[%clk 0:00:02.6]} 46... Nc8 {[%clk 0:00:53.7]} 47.
Nd3 {[%clk 0:00:02.4]} 47... Ne7 {[%clk 0:00:53.6]} 48. Nf2 {[%clk 0:00:01.3]}
48... g6 {[%clk 0:00:49.8]} 49. hxg6 {[%clk 0:00:02.2]} 49... Qxg6 {[%clk
0:00:45.1]} 50. Nd3 {[%clk 0:00:03.1]} 50... Qg5+ {[%clk 0:00:43.6]} 51. Ke2
{[%clk 0:00:03.5]} 51... Ng6 {[%clk 0:00:41.8]} 52. Qb2 {[%clk 0:00:03.9]} 52...
Rh7 {[%clk 0:00:37.2]} 53. Qc1 {[%clk 0:00:04.1]} 53... Nh4 {[%clk 0:00:30.6]}
54. Qxg5+ {[%clk 0:00:03.1]} 54... fxg5 {[%clk 0:00:30.3]} 55. Rcc1 {[%clk
0:00:03.2]} 55... Rf7 {[%clk 0:00:29.1]} 56. Rh3 {[%clk 0:00:02]} 56... Kg7
{[%clk 0:00:28.9]} 57. Nb2 {[%clk 0:00:02.1]} 57... Ng6 {[%clk 0:00:28.3]} 58.
Nd3 {[%clk 0:00:02.4]} 58... Nh4 {[%clk 0:00:27.8]} 59. Rf1 {[%clk 0:00:02.8]}
59... Rbf8 {[%clk 0:00:26.2]} 60. Rg3 {[%clk 0:00:01.7]} 60... Kg6 {[%clk
0:00:25.3]} 61. Rh3 {[%clk 0:00:01.8]} 61... h5 {[%clk 0:00:25]} 62. gxh5+
{[%clk 0:00:02.1]} 62... Kxh5 {[%clk 0:00:25]} 63. Ne1 {[%clk 0:00:02.2]} 63...
g4 {[%clk 0:00:21.4]} 64. fxg4+ {[%clk 0:00:02]} 64... Kxg4 {[%clk 0:00:21.1]}
65. Rxf7 {[%clk 0:00:02.1]} 65... Rxf7 {[%clk 0:00:21.1]} 66. Rh2 {[%clk
0:00:03]} 66... Kg3 {[%clk 0:00:19.9]} 67. Rh1 {[%clk 0:00:02.5]} 67... Rf2+
{[%clk 0:00:19.8]} 68. Ke3 {[%clk 0:00:02.5]} 68... Ra2 {[%clk 0:00:18.5]} 69.
Rg1+ {[%clk 0:00:02.4]} 69... Kh3 {[%clk 0:00:17.4]} 70. Rg7 {[%clk 0:00:01.7]}
70... Ra3+ {[%clk 0:00:17.1]} 71. Nd3 {[%clk 0:00:01.4]} 71... Ng2+ {[%clk
0:00:13.6]} 72. Kf2 {[%clk 0:00:01.1]} 72... Rxd3 {[%clk 0:00:10.5]} 73. Rh7+
{[%clk 0:00:01.3]} 73... Kg4 {[%clk 0:00:10.4]} 0-1